fUSD/lending_fUSD_20260522
["ID","MTS","AMOUNT","RATE_DAILY","PERIOD"]
[422801122,1779418232000,-150.0,0.00012822,2]
[422801120,1779418232000,-165.91396287,0.00012799,2]
[422801126,1779418232000,-165.91396287,0.00012855,2]
[422801119,1779418232000,-164.61,0.00012796,2]
[422801118,1779418232000,-165.91396287,0.00012785,2]
[422801117,1779418232000,-150.0,0.00012785,2]
[422801116,1779418232000,-150.0,0.00012785,2]
[422801114,1779418232000,-165.91396287,0.00012772,2]
[422801121,1779418232000,-165.91396287,0.00012813,2]
[422801195,1779418233000,-165.91396287,0.0001327,2]
[422801196,1779418233000,-165.91396287,0.00013284,2]
[422801197,1779418233000,-165.91396287,0.00013297,2]
[422801198,1779418233000,-165.91396287,0.00013311,2]
[422801189,1779418233000,-165.91396287,0.00013228,2]
[422801188,1779418233000,-165.91396287,0.00013214,2]
[422801192,1779418233000,-165.91396287,0.00013242,2]
[422801190,1779418233000,-150.0,0.00013242,2]
[422801193,1779418233000,-165.91396287,0.00013256,2]
[422801191,1779418233000,-150.0,0.00013242,2]
[422801194,1779418233000,-150.0,0.0001326,2]
[422801199,1779418233000,-150.0,0.00013315,2]
[422801210,1779418233000,-165.91396287,0.0001338,2]
[422801201,1779418233000,-165.91396287,0.00013325,2]
[422801204,1779418233000,-165.91396287,0.00013353,2]
[422801202,1779418233000,-150.0,0.00013333,2]
[422801203,1779418233000,-165.91396287,0.00013339,2]
[422801206,1779418233000,-500.0,0.00013356,2]
[422801205,1779418233000,-1000.0,0.00013356,2]
[422801207,1779418233000,-500.0,0.00013356,2]
[422801208,1779418233000,-165.91396287,0.00013367,2]
[422801209,1779418233000,-150.0,0.0001337,2]
[422801211,1779418233000,-208.69107998,0.00013391,2]
[422801212,1779418233000,-165.91396287,0.00013394,2]
[422801185,1779418233000,-150.0,0.000132,2]
[422801200,1779418233000,-150.0,0.00013325,2]
[422801187,1779418233000,-150.0,0.00013205,2]
[422801172,1779418233000,-500.0,0.00013151,2]
[422801184,1779418233000,-165.91396287,0.00013187,2]
[422801215,1779418233000,-500.0,0.00013424,2]
[422801159,1779418233000,-150.0,0.00013096,2]
[422801158,1779418233000,-420.0,0.0001309,2]
[422801161,1779418233000,-1680.0,0.00013115,2]
[422801162,1779418233000,-165.91396287,0.00013117,2]
[422801163,1779418233000,-165.91396287,0.00013131,2]
[422801164,1779418233000,-350.0,0.00013134,2]
[422801165,1779418233000,-165.91396287,0.00013145,2]
[422801167,1779418233000,-150.0,0.00013151,2]
[422801168,1779418233000,-500.0,0.00013151,2]
[422801169,1779418233000,-500.0,0.00013151,2]
[422801166,1779418233000,-150.0,0.00013151,2]
[422801171,1779418233000,-500.0,0.00013151,2]
[422801170,1779418233000,-500.0,0.00013151,2]
[422801176,1779418233000,-626.17123448,0.00013151,2]
[422801174,1779418233000,-500.0,0.00013151,2]
[422801175,1779418233000,-500.0,0.00013151,2]
[422801173,1779418233000,-500.0,0.00013151,2]
[422801177,1779418233000,-150.0,0.00013151,2]
[422801179,1779418233000,-150.0,0.00013151,2]
[422801180,1779418233000,-276.97220592,0.00013151,2]
[422801181,1779418233000,-165.91396287,0.00013159,2]
[422801182,1779418233000,-500.0,0.00013165,2]
[422801183,1779418233000,-165.91396287,0.00013173,2]
[422801178,1779418233000,-150.0,0.00013151,2]
[422801186,1779418233000,-165.91396287,0.000132,2]
[422801214,1779418233000,-165.91396287,0.00013422,2]
[422801160,1779418233000,-165.91396287,0.00013104,2]
[422801213,1779418233000,-165.91396287,0.00013408,2]
[422801245,1779418233000,-500.0,0.00013425,2]
[422801249,1779418233000,-500.0,0.00013425,2]
[422801250,1779418233000,-593.0,0.00013425,2]
[422801248,1779418233000,-1113.0,0.00013425,2]
[422801252,1779418233000,-500.0,0.00013425,2]
[422801251,1779418233000,-1113.0,0.00013425,2]
[422801253,1779418233000,-1113.0,0.00013425,2]
[422801254,1779418233000,-500.0,0.00013425,2]
[422801255,1779418233000,-500.0,0.00013425,2]
[422801257,1779418233000,-500.0,0.00013425,2]
[422801256,1779418233000,-1113.0,0.00013425,2]
[422801262,1779418233000,-500.0,0.00013425,2]
[422801260,1779418233000,-500.0,0.00013425,2]
[422801261,1779418233000,-1113.0,0.00013425,2]
[422801259,1779418233000,-593.0,0.00013425,2]
[422801264,1779418233000,-500.0,0.00013425,2]
[422801263,1779418233000,-1113.0,0.00013425,2]
[422801265,1779418233000,-1113.0,0.00013425,2]
[422801266,1779418233000,-500.0,0.00013425,2]
[422801268,1779418233000,-1113.0,0.00013425,2]
[422801269,1779418233000,-593.0,0.00013425,2]
[422801271,1779418233000,-1113.0,0.00013425,2]
[422801267,1779418233000,-1113.0,0.00013425,2]
[422801270,1779418233000,-1113.0,0.00013425,2]
[422801216,1779418233000,-150.0,0.00013425,2]
[422801247,1779418233000,-593.0,0.00013425,2]
[422801246,1779418233000,-1113.0,0.00013425,2]
[422801258,1779418233000,-500.0,0.00013425,2]
[422801240,1779418233000,-500.0,0.00013425,2]
[422801218,1779418233000,-593.0,0.00013425,2]
[422801244,1779418233000,-593.0,0.00013425,2]
[422801220,1779418233000,-593.0,0.00013425,2]
[422801217,1779418233000,-150.0,0.00013425,2]
[422801221,1779418233000,-500.0,0.00013425,2]
[422801219,1779418233000,-500.0,0.00013425,2]
[422801223,1779418233000,-500.0,0.00013425,2]
[422801222,1779418233000,-593.0,0.00013425,2]
[422801226,1779418233000,-500.0,0.00013425,2]
[422801227,1779418233000,-150.0,0.00013425,2]
[422801225,1779418233000,-593.0,0.00013425,2]
[422801228,1779418233000,-172.83131025,0.00013425,2]
[422801229,1779418233000,-593.0,0.00013425,2]
[422801224,1779418233000,-150.0,0.00013425,2]
[422801238,1779418233000,-593.0,0.00013425,2]
[422801231,1779418233000,-150.0,0.00013425,2]
[422801233,1779418233000,-150.0,0.00013425,2]
[422801232,1779418233000,-593.0,0.00013425,2]
[422801236,1779418233000,-593.0,0.00013425,2]
[422801234,1779418233000,-593.0,0.00013425,2]
[422801235,1779418233000,-207.76790227,0.00013425,2]
[422801239,1779418233000,-1113.0,0.00013425,2]
[422801243,1779418233000,-1113.0,0.00013425,2]
[422801237,1779418233000,-500.0,0.00013425,2]
[422801241,1779418233000,-593.0,0.00013425,2]
[422801230,1779418233000,-593.0,0.00013425,2]
[422801242,1779418233000,-500.0,0.00013425,2]
[422801311,1779418234000,-296.91057,0.0001356,2]
[422801314,1779418234000,-165.91396287,0.00013574,2]
[422801308,1779418234000,-165.91396287,0.00013533,2]
[422801315,1779418234000,-150.0,0.00013574,2]
[422801312,1779418234000,-165.91396287,0.0001356,2]
[422801313,1779418234000,-296.91058,0.0001357,2]
[422801305,1779418234000,-165.91396287,0.00013505,2]
[422801310,1779418234000,-165.91396287,0.00013546,2]
[422801306,1779418234000,-150.0,0.00013516,2]
[422801307,1779418234000,-165.91396287,0.00013519,2]
[422801316,1779418234000,-165.91396287,0.00013588,2]
[422801309,1779418234000,-150.0,0.00013534,2]
[422801317,1779418234000,-150.0,0.00013589,2]
[422801332,1779418234000,-254.45539014,0.000136,2]
[422801320,1779418234000,-151.0,0.00013596,2]
[422801322,1779418234000,-418.31063738,0.000136,2]
[422801319,1779418234000,-255.0,0.00013593,2]
[422801321,1779418234000,-406.4562,0.00013597,2]
[422801323,1779418234000,-1000.0,0.000136,2]
[422801326,1779418234000,-150.05461187,0.000136,2]
[422801325,1779418234000,-304.67625312,0.000136,2]
[422801324,1779418234000,-163.38382158,0.000136,2]
[422801327,1779418234000,-150.05461187,0.000136,2]
[422801328,1779418234000,-150.05461187,0.000136,2]
[422801329,1779418234000,-150.05461187,0.000136,2]
[422801331,1779418234000,-911.31028264,0.000136,2]
[422801304,1779418234000,-11811.1233153,0.000135,2]
[422801318,1779418234000,-296.91058,0.0001359,2]
[422801300,1779418234000,-150.0,0.00013479,2]
[422801275,1779418234000,-593.0,0.00013425,2]
[422801302,1779418234000,-173.034,0.00013488,2]
[422801274,1779418234000,-500.0,0.00013425,2]
[422801272,1779418234000,-353.45757412,0.00013425,2]
[422801273,1779418234000,-1113.0,0.00013425,2]
[422801330,1779418234000,-1520.72629881,0.000136,2]
[422801277,1779418234000,-1113.0,0.00013425,2]
[422801279,1779418234000,-1113.0,0.00013425,2]
[422801278,1779418234000,-593.0,0.00013425,2]
[422801276,1779418234000,-558.89065839,0.00013425,2]
[422801281,1779418234000,-593.0,0.00013425,2]
[422801285,1779418234000,-596.03434406,0.00013425,2]
[422801283,1779418234000,-593.0,0.00013425,2]
[422801280,1779418234000,-593.0,0.00013425,2]
[422801284,1779418234000,-593.0,0.00013425,2]
[422801282,1779418234000,-593.0,0.00013425,2]
[422801286,1779418234000,-1113.0,0.00013425,2]
[422801288,1779418234000,-1113.0,0.00013425,2]
[422801289,1779418234000,-1113.0,0.00013425,2]
[422801290,1779418234000,-1113.0,0.00013425,2]
[422801287,1779418234000,-1113.0,0.00013425,2]
[422801291,1779418234000,-1113.0,0.00013425,2]
[422801293,1779418234000,-165.91396287,0.00013436,2]
[422801292,1779418234000,-1113.0,0.00013425,2]
[422801294,1779418234000,-500.0,0.00013439,2]
[422801295,1779418234000,-150.0,0.0001345,2]
[422801297,1779418234000,-165.91396287,0.00013463,2]
[422801299,1779418234000,-165.91396287,0.00013477,2]
[422801296,1779418234000,-165.91396287,0.0001345,2]
[422801298,1779418234000,-150.0,0.0001347,2]
[422801301,1779418234000,-1539.815,0.00013488,2]
[422801303,1779418234000,-165.91396287,0.00013491,2]
[422801333,1779418234000,-661.05631306,0.000136,2]
[422801342,1779418234000,-165.91396287,0.00013643,2]
[422801335,1779418234000,-150.0,0.00013607,2]
[422801369,1779418234000,-500.0,0.00013698,2]
[422801370,1779418234000,-500.0,0.00013698,2]
[422801371,1779418234000,-506.7703707,0.00013698,2]
[422801372,1779418234000,-155.58048581,0.00013699,2]
[422801374,1779418234000,-150.0,0.00013699,2]
[422801373,1779418234000,-150.0,0.00013699,2]
[422801375,1779418234000,-150.0,0.00013699,2]
[422801376,1779418234000,-150.0,0.00013699,2]
[422801379,1779418234000,-247.7,0.00013699,2]
[422801377,1779418234000,-165.91396287,0.00013699,2]
[422801378,1779418234000,-166.66,0.00013699,2]
[422801380,1779418234000,-206.42,0.00013699,2]
[422801384,1779418234000,-7268.0,0.00013699,2]
[422801368,1779418234000,-500.0,0.00013698,2]
[422801382,1779418234000,-860.09,0.00013699,2]
[422801387,1779418234000,-300.0,0.00013699,2]
[422801388,1779418234000,-300.0,0.00013699,2]
[422801386,1779418234000,-666.0,0.00013699,2]
[422801334,1779418234000,-165.91396287,0.00013602,2]
[422801381,1779418234000,-172.01,0.00013699,2]
[422801389,1779418234000,-666.0,0.00013699,2]
[422801390,1779418234000,-1511.36,0.00013699,2]
[422801392,1779418234000,-1511.36,0.00013699,2]
[422801391,1779418234000,-1511.36,0.00013699,2]
[422801393,1779418234000,-1511.36,0.00013699,2]
[422801395,1779418234000,-1511.36,0.00013699,2]
[422801394,1779418234000,-1511.36,0.00013699,2]
[422801396,1779418234000,-1511.36,0.00013699,2]
[422801383,1779418234000,-200.0,0.00013699,2]
[422801367,1779418234000,-500.0,0.00013698,2]
[422801385,1779418234000,-300.0,0.00013699,2]
[422801365,1779418234000,-978.94,0.00013698,2]
[422801366,1779418234000,-978.94,0.00013698,2]
[422801337,1779418234000,-215.27762834,0.00013625,2]
[422801338,1779418234000,-165.91396287,0.00013629,2]
[422801336,1779418234000,-165.91396287,0.00013616,2]
[422801339,1779418234000,-671.6265261,0.0001363,2]
[422801341,1779418234000,-161.91,0.00013641,2]
[422801344,1779418234000,-163.390817,0.00013648,2]
[422801343,1779418234000,-150.0,0.00013644,2]
[422801348,1779418234000,-165.91396287,0.00013657,2]
[422801347,1779418234000,-1332.0610509,0.00013651,2]
[422801345,1779418234000,-5782.8237486,0.00013651,2]
[422801346,1779418234000,-4842.647907,0.00013651,2]
[422801349,1779418234000,-352.76895964,0.00013658,2]
[422801350,1779418234000,-165.91396287,0.00013671,2]
[422801340,1779418234000,-166.67,0.00013634,2]
[422801351,1779418234000,-169.0,0.00013671,2]
[422801363,1779418234000,-500.0,0.00013698,2]
[422801352,1779418234000,-171.0,0.00013671,2]
[422801364,1779418234000,-500.0,0.00013698,2]
[422801356,1779418234000,-151.0,0.00013697,2]
[422801361,1779418234000,-500.0,0.00013698,2]
[422801358,1779418234000,-163.390817,0.00013697,2]
[422801362,1779418234000,-500.0,0.00013698,2]
[422801360,1779418234000,-508.88589757,0.00013698,2]
[422801359,1779418234000,-151.0,0.00013697,2]
[422801355,1779418234000,-170.71755427,0.0001369,2]
[422801354,1779418234000,-170.71755427,0.0001369,2]
[422801353,1779418234000,-165.91396287,0.00013685,2]
[422801357,1779418234000,-151.0,0.00013697,2]
[422801419,1779418235000,-7261.84,0.00013699,2]
[422801429,1779418235000,-500.0,0.00013699,2]
[422801421,1779418235000,-7261.84,0.00013699,2]
[422801422,1779418235000,-7261.84,0.00013699,2]
[422801425,1779418235000,-500.0,0.00013699,2]
[422801423,1779418235000,-7261.84,0.00013699,2]
[422801426,1779418235000,-500.0,0.00013699,2]
[422801428,1779418235000,-500.0,0.00013699,2]
[422801427,1779418235000,-500.0,0.00013699,2]
[422801435,1779418235000,-500.0,0.00013699,2]
[422801430,1779418235000,-500.0,0.00013699,2]
[422801432,1779418235000,-500.0,0.00013699,2]
[422801431,1779418235000,-500.0,0.00013699,2]
[422801437,1779418235000,-500.0,0.00013699,2]
[422801439,1779418235000,-500.0,0.00013699,2]
[422801436,1779418235000,-500.0,0.00013699,2]
[422801433,1779418235000,-500.0,0.00013699,2]
[422801417,1779418235000,-7261.84,0.00013699,2]
[422801424,1779418235000,-500.0,0.00013699,2]
[422801434,1779418235000,-500.0,0.00013699,2]
[422801403,1779418235000,-1511.36,0.00013699,2]
[422801416,1779418235000,-7261.84,0.00013699,2]
[422801399,1779418235000,-1511.36,0.00013699,2]
[422801397,1779418235000,-1511.36,0.00013699,2]
[422801400,1779418235000,-1511.36,0.00013699,2]
[422801398,1779418235000,-1511.36,0.00013699,2]
[422801401,1779418235000,-1511.36,0.00013699,2]
[422801404,1779418235000,-1511.36,0.00013699,2]
[422801402,1779418235000,-1511.36,0.00013699,2]
[422801405,1779418235000,-1511.36,0.00013699,2]
[422801418,1779418235000,-7261.84,0.00013699,2]
[422801407,1779418235000,-7261.84,0.00013699,2]
[422801409,1779418235000,-7261.84,0.00013699,2]
[422801406,1779418235000,-1511.36,0.00013699,2]
[422801410,1779418235000,-7261.84,0.00013699,2]
[422801411,1779418235000,-7261.84,0.00013699,2]
[422801414,1779418235000,-7261.84,0.00013699,2]
[422801413,1779418235000,-7261.84,0.00013699,2]
[422801412,1779418235000,-7261.84,0.00013699,2]
[422801415,1779418235000,-7261.84,0.00013699,2]
[422801408,1779418235000,-7261.84,0.00013699,2]
[422801438,1779418235000,-500.0,0.00013699,2]
[422801420,1779418235000,-7261.84,0.00013699,2]
[422801441,1779418235000,-500.0,0.00013699,2]
[422801465,1779418235000,-500.0,0.00013699,2]
[422801466,1779418235000,-500.0,0.00013699,2]
[422801468,1779418235000,-500.0,0.00013699,2]
[422801467,1779418235000,-500.0,0.00013699,2]
[422801469,1779418235000,-500.0,0.00013699,2]
[422801470,1779418235000,-500.0,0.00013699,2]
[422801472,1779418235000,-500.0,0.00013699,2]
[422801471,1779418235000,-510.68342527,0.00013699,2]
[422801473,1779418235000,-500.0,0.00013699,2]
[422801478,1779418235000,-500.0,0.00013699,2]
[422801475,1779418235000,-500.0,0.00013699,2]
[422801474,1779418235000,-500.0,0.00013699,2]
[422801476,1779418235000,-500.0,0.00013699,2]
[422801479,1779418235000,-500.0,0.00013699,2]
[422801480,1779418235000,-500.0,0.00013699,2]
[422801482,1779418235000,-500.0,0.00013699,2]
[422801481,1779418235000,-500.0,0.00013699,2]
[422801483,1779418235000,-500.0,0.00013699,2]
[422801440,1779418235000,-505.51573197,0.00013699,2]
[422801462,1779418235000,-500.0,0.00013699,2]
[422801464,1779418235000,-500.0,0.00013699,2]
[422801477,1779418235000,-500.0,0.00013699,2]
[422801460,1779418235000,-500.0,0.00013699,2]
[422801463,1779418235000,-500.0,0.00013699,2]
[422801444,1779418235000,-500.0,0.00013699,2]
[422801442,1779418235000,-500.0,0.00013699,2]
[422801443,1779418235000,-500.0,0.00013699,2]
[422801445,1779418235000,-500.0,0.00013699,2]
[422801448,1779418235000,-500.0,0.00013699,2]
[422801446,1779418235000,-500.0,0.00013699,2]
[422801449,1779418235000,-500.0,0.00013699,2]
[422801451,1779418235000,-500.0,0.00013699,2]
[422801450,1779418235000,-500.0,0.00013699,2]
[422801447,1779418235000,-500.0,0.00013699,2]
[422801452,1779418235000,-500.0,0.00013699,2]
[422801453,1779418235000,-500.0,0.00013699,2]
[422801454,1779418235000,-500.0,0.00013699,2]
[422801455,1779418235000,-500.0,0.00013699,2]
[422801457,1779418235000,-500.0,0.00013699,2]
[422801456,1779418235000,-453.92477929,0.00013699,2]
[422801458,1779418235000,-500.0,0.00013699,2]
[422801459,1779418235000,-500.0,0.00013699,2]
[422801461,1779418235000,-500.0,0.00013699,2]
[422801519,1779418236000,-500.0,0.00013699,2]
[422801515,1779418236000,-500.0,0.00013699,2]
[422801514,1779418236000,-500.0,0.00013699,2]
[422801516,1779418236000,-500.0,0.00013699,2]
[422801517,1779418236000,-500.0,0.00013699,2]
[422801512,1779418236000,-500.0,0.00013699,2]
[422801513,1779418236000,-500.0,0.00013699,2]
[422801518,1779418236000,-500.0,0.00013699,2]
[422801520,1779418236000,-500.0,0.00013699,2]
[422801511,1779418236000,-500.0,0.00013699,2]
[422801521,1779418236000,-506.04581442,0.00013699,2]
[422801529,1779418236000,-500.0,0.00013699,2]
[422801523,1779418236000,-500.0,0.00013699,2]
[422801525,1779418236000,-500.0,0.00013699,2]
[422801527,1779418236000,-500.0,0.00013699,2]
[422801522,1779418236000,-500.0,0.00013699,2]
[422801526,1779418236000,-500.0,0.00013699,2]
[422801528,1779418236000,-500.0,0.00013699,2]
[422801530,1779418236000,-500.0,0.00013699,2]
[422801531,1779418236000,-500.0,0.00013699,2]
[422801532,1779418236000,-500.0,0.00013699,2]
[422801509,1779418236000,-1127.4,0.00013699,2]
[422801524,1779418236000,-500.0,0.00013699,2]
[422801510,1779418236000,-1127.4,0.00013699,2]
[422801486,1779418236000,-500.0,0.00013699,2]
[422801507,1779418236000,-1127.4,0.00013699,2]
[422801485,1779418236000,-500.0,0.00013699,2]
[422801484,1779418236000,-500.0,0.00013699,2]
[422801487,1779418236000,-500.0,0.00013699,2]
[422801533,1779418236000,-500.0,0.00013699,2]
[422801489,1779418236000,-500.0,0.00013699,2]
[422801488,1779418236000,-500.0,0.00013699,2]
[422801490,1779418236000,-500.0,0.00013699,2]
[422801491,1779418236000,-500.0,0.00013699,2]
[422801495,1779418236000,-500.0,0.00013699,2]
[422801492,1779418236000,-500.0,0.00013699,2]
[422801497,1779418236000,-500.0,0.00013699,2]
[422801493,1779418236000,-500.0,0.00013699,2]
[422801496,1779418236000,-500.0,0.00013699,2]
[422801494,1779418236000,-500.0,0.00013699,2]
[422801498,1779418236000,-1127.4,0.00013699,2]
[422801499,1779418236000,-1127.4,0.00013699,2]
[422801501,1779418236000,-1127.4,0.00013699,2]
[422801500,1779418236000,-1127.4,0.00013699,2]
[422801506,1779418236000,-1127.4,0.00013699,2]
[422801503,1779418236000,-1127.4,0.00013699,2]
[422801504,1779418236000,-1127.4,0.00013699,2]
[422801502,1779418236000,-1127.4,0.00013699,2]
[422801505,1779418236000,-1127.4,0.00013699,2]
[422801508,1779418236000,-1127.4,0.00013699,2]
[422801539,1779418236000,-500.0,0.00013699,2]
[422801540,1779418236000,-500.0,0.00013699,2]
[422801536,1779418236000,-500.0,0.00013699,2]
[422801567,1779418236000,-921.89,0.00013699,2]
[422801566,1779418236000,-921.89,0.00013699,2]
[422801565,1779418236000,-921.89,0.00013699,2]
[422801569,1779418236000,-921.89,0.00013699,2]
[422801564,1779418236000,-500.0,0.00013699,2]
[422801561,1779418236000,-500.0,0.00013699,2]
[422801570,1779418236000,-921.89,0.00013699,2]
[422801571,1779418236000,-921.89,0.00013699,2]
[422801575,1779418236000,-921.89,0.00013699,2]
[422801580,1779418236000,-500.0,0.00013699,2]
[422801573,1779418236000,-921.89,0.00013699,2]
[422801577,1779418236000,-921.89,0.00013699,2]
[422801579,1779418236000,-616.9808049,0.00013699,2]
[422801535,1779418236000,-538.05787571,0.00013699,2]
[422801578,1779418236000,-500.0,0.00013699,2]
[422801576,1779418236000,-921.89,0.00013699,2]
[422801572,1779418236000,-921.89,0.00013699,2]
[422801581,1779418236000,-500.0,0.00013699,2]
[422801582,1779418236000,-500.0,0.00013699,2]
[422801584,1779418236000,-500.0,0.00013699,2]
[422801583,1779418236000,-500.0,0.00013699,2]
[422801585,1779418236000,-500.0,0.00013699,2]
[422801586,1779418236000,-500.0,0.00013699,2]
[422801562,1779418236000,-500.0,0.00013699,2]
[422801563,1779418236000,-500.0,0.00013699,2]
[422801574,1779418236000,-921.89,0.00013699,2]
[422801560,1779418236000,-500.0,0.00013699,2]
[422801534,1779418236000,-510.74292638,0.00013699,2]
[422801568,1779418236000,-921.89,0.00013699,2]
[422801537,1779418236000,-500.0,0.00013699,2]
[422801538,1779418236000,-500.0,0.00013699,2]
[422801541,1779418236000,-500.0,0.00013699,2]
[422801547,1779418236000,-500.0,0.00013699,2]
[422801546,1779418236000,-500.0,0.00013699,2]
[422801544,1779418236000,-500.0,0.00013699,2]
[422801548,1779418236000,-500.0,0.00013699,2]
[422801549,1779418236000,-500.0,0.00013699,2]
[422801543,1779418236000,-500.0,0.00013699,2]
[422801542,1779418236000,-500.0,0.00013699,2]
[422801550,1779418236000,-500.0,0.00013699,2]
[422801551,1779418236000,-520.45120538,0.00013699,2]
[422801552,1779418236000,-500.0,0.00013699,2]
[422801555,1779418236000,-500.0,0.00013699,2]
[422801553,1779418236000,-500.0,0.00013699,2]
[422801554,1779418236000,-500.0,0.00013699,2]
[422801556,1779418236000,-500.0,0.00013699,2]
[422801557,1779418236000,-500.0,0.00013699,2]
[422801559,1779418236000,-500.0,0.00013699,2]
[422801545,1779418236000,-500.0,0.00013699,2]
[422801558,1779418236000,-500.0,0.00013699,2]
[422801600,1779418237000,-500.0,0.00013699,2]
[422801606,1779418237000,-978.94,0.00013699,2]
[422801608,1779418237000,-978.94,0.00013699,2]
[422801609,1779418237000,-978.94,0.00013699,2]
[422801611,1779418237000,-978.94,0.00013699,2]
[422801616,1779418237000,-500.0,0.00013699,2]
[422801610,1779418237000,-978.94,0.00013699,2]
[422801614,1779418237000,-978.94,0.00013699,2]
[422801617,1779418237000,-500.0,0.00013699,2]
[422801613,1779418237000,-978.94,0.00013699,2]
[422801615,1779418237000,-978.94,0.00013699,2]
[422801603,1779418237000,-500.0,0.00013699,2]
[422801612,1779418237000,-978.94,0.00013699,2]
[422801601,1779418237000,-500.0,0.00013699,2]
[422801593,1779418237000,-500.0,0.00013699,2]
[422801604,1779418237000,-978.94,0.00013699,2]
[422801619,1779418237000,-500.0,0.00013699,2]
[422801591,1779418237000,-150.06581077,0.00013699,2]
[422801589,1779418237000,-500.0,0.00013699,2]
[422801587,1779418237000,-500.0,0.00013699,2]
[422801590,1779418237000,-500.0,0.00013699,2]
[422801588,1779418237000,-500.0,0.00013699,2]
[422801605,1779418237000,-978.94,0.00013699,2]
[422801594,1779418237000,-500.0,0.00013699,2]
[422801595,1779418237000,-500.0,0.00013699,2]
[422801597,1779418237000,-500.0,0.00013699,2]
[422801596,1779418237000,-500.0,0.00013699,2]
[422801599,1779418237000,-500.0,0.00013699,2]
[422801602,1779418237000,-500.0,0.00013699,2]
[422801598,1779418237000,-500.0,0.00013699,2]
[422801592,1779418237000,-500.0,0.00013699,2]
[422801618,1779418237000,-500.0,0.00013699,2]
[422801607,1779418237000,-978.94,0.00013699,2]
[422801620,1779418237000,-382.94224013,0.00013699,2]
[422801641,1779418237000,-500.0,0.00013699,2]
[422801640,1779418237000,-500.0,0.00013699,2]
[422801642,1779418237000,-373.63891721,0.00013699,2]
[422801643,1779418237000,-500.0,0.00013699,2]
[422801644,1779418237000,-500.0,0.00013699,2]
[422801646,1779418237000,-527.2240957,0.00013699,2]
[422801639,1779418237000,-500.0,0.00013699,2]
[422801645,1779418237000,-500.0,0.00013699,2]
[422801649,1779418237000,-191.0,0.00013699,2]
[422801650,1779418237000,-191.0,0.00013699,2]
[422801648,1779418237000,-191.0,0.00013699,2]
[422801651,1779418237000,-148429.65003893,0.000137,2]
[422801652,1779418237000,-71552.6403745,0.000137,2]
[422801653,1779418237000,-159332.95082904,0.000137,2]
[422801647,1779418237000,-191.0,0.00013699,2]
[422801638,1779418237000,-500.0,0.00013699,2]
[422801621,1779418237000,-500.0,0.00013699,2]
[422801637,1779418237000,-500.0,0.00013699,2]
[422801622,1779418237000,-500.0,0.00013699,2]
[422801623,1779418237000,-500.0,0.00013699,2]
[422801625,1779418237000,-500.0,0.00013699,2]
[422801626,1779418237000,-500.0,0.00013699,2]
[422801628,1779418237000,-500.0,0.00013699,2]
[422801624,1779418237000,-500.0,0.00013699,2]
[422801636,1779418237000,-500.0,0.00013699,2]
[422801627,1779418237000,-500.0,0.00013699,2]
[422801630,1779418237000,-500.0,0.00013699,2]
[422801631,1779418237000,-500.0,0.00013699,2]